bitfinex/quotes_SOLUSD_20251207
["timestamp","ask_amount","ask_price","bid_price","bid_amount"]
[1765129943739,9.63713469,134.99,134.94,10.34713469]
[1765129944036,9.63713469,134.99,134.95,7.41007016]
[1765129944238,34.20637722,135.0,134.94,8.12054409]
[1765129944239,10.35713469,134.98,134.94,8.12054409]
[1765129944538,0.72,134.98,134.94,8.12054409]
[1765129944740,18.63713469,134.97,134.93,7.41122858]
[1765129944916,9.0,134.97,134.93,7.41122858]
[1765129945234,9.0,134.97,134.93,17.75836327]
[1765129945441,9.0,134.97,134.94,7.41063642]
[1765129947433,15.689064,134.97,134.93,17.04832868]
[1765129947740,9.0,134.97,134.93,17.75832868]
[1765129947910,9.0,134.97,134.93,34.06719268]
[1765129950633,0.72,134.96,134.93,33.35719268]
[1765129950850,8.28,134.97,134.93,33.35719268]
[1765129951024,8.28,134.97,134.94,10.34713469]
[1765129951536,9.52994492,134.99,134.94,10.34713469]
[1765129951737,9.0,134.98,134.94,10.34713469]
[1765129952051,34.73441983,135.02,134.95,10.34713469]
[1765129952052,17.04407951,135.01,134.95,10.34713469]
[1765129952357,8.28,135.0,134.95,10.34713469]
[1765129952564,9.0,135.0,134.95,10.34713469]
[1765129952736,0.72,134.99,134.96,7.40960284]
[1765129952927,9.63713469,134.97,134.93,16.308864]
[1765129953127,8.28,134.96,134.93,23.71964819]
[1765129953335,8.28,134.97,134.95,7.4101519]
[1765129954548,8.28,134.97,134.92,0.2]
[1765129954549,17.91713469,134.97,134.92,0.2]
[1765129954854,9.63713469,134.95,134.92,7.61174933]
[1765129955037,10.35713469,134.96,134.92,7.61174933]
[1765129955353,0.72,134.95,134.92,7.61174933]
[1765129955928,8.28,134.94,134.92,0.2]
[1765129956134,18.44707961,134.93,134.92,0.2]
[1765129956340,19.16707961,134.93,134.92,0.2]
[1765129956638,16.94119519,134.93,134.92,0.2]
[1765129956850,0.72,134.93,134.92,0.2]
[1765129957332,9.0,134.93,134.92,0.2]
[1765129957529,0.72,134.93,134.92,0.2]
[1765129957766,8.28,134.93,134.92,0.2]
[1765129957933,9.52994492,134.95,134.92,0.2]
[1765129958135,8.28,134.94,134.92,0.2]
[1765129958466,8.28,134.94,134.92,7.61169329]
[1765129958986,9.63713469,134.97,134.93,0.71]
[1765129959266,8.28,134.95,134.93,0.71]
[1765129959452,0.72,134.97,134.93,10.34713469]
[1765129959453,8.28,134.97,134.93,10.34713469]
[1765129959653,0.72,134.99,134.94,9.63713469]
[1765129959966,8.28,134.98,134.95,9.63713469]
[1765129960162,8.28,134.98,134.94,0.71]
[1765129960460,8.28,134.98,134.94,10.34713469]
[1765129960851,8.28,134.98,134.95,8.1201519]
[1765129961458,0.72,134.97,134.94,7.41053575]
[1765129962061,17.91713469,134.98,134.94,7.41053575]
[1765129962233,18.63713469,134.98,134.94,8.12053575]
[1765129962634,26.04590239,134.98,134.94,8.12053575]
[1765129962945,0.72,134.97,134.93,25.93858153]
[1765129963127,0.72,134.97,134.93,26.64858153]
[1765129964133,15.6887677,134.98,134.93,25.93858153]
[1765129964333,0.72,134.97,134.94,7.41045383]
[1765129964761,0.72,134.97,134.93,8.12103954]
[1765129964963,10.35713469,134.97,134.93,7.41103954]
[1765129965266,18.44707961,134.96,134.92,0.2]
[1765129965435,9.0,134.95,134.92,0.2]
[1765129966332,9.0,134.95,134.92,7.61178199]
[1765129966528,26.04741214,134.95,134.92,0.2]
[1765129967033,16.41027745,134.95,134.92,0.2]
[1765129968136,0.72,134.94,134.92,0.2]
[1765129968337,25.85832988,134.93,134.92,0.2]
[1765129968743,23.17882506,134.93,134.92,0.2]
[1765129972851,16.22119519,134.93,134.92,0.2]
[1765129973166,31.44882506,134.93,134.92,0.2]
[1765129976559,16.308864,134.9,134.86,0.2]
[1765129976754,6.23762987,134.88,134.86,0.2]
[1765129977958,6.23762987,134.88,134.86,0.89]
[1765129978263,8.28,134.87,134.86,0.89]
[1765129979172,6.23762987,134.9,134.86,8.30463846]
[1765129979339,8.28,134.89,134.87,0.69]
[1765129981734,32.53076577,134.92,134.87,8.10441173]
[1765129981938,8.28,134.91,134.87,8.10441173]
[1765129982168,8.28,134.91,134.88,0.69]
[1765129984368,8.80994492,134.93,134.88,32.87641314]
[1765129984676,15.6902411,134.95,134.9,6.23762987]
[1765129984969,15.6902411,134.95,134.91,0.69]
[1765129985266,8.28,134.95,134.91,0.69]
[1765129985458,8.28,134.95,134.91,6.92762987]
[1765129985856,8.28,134.95,134.92,0.69]
[1765129986449,8.28,134.95,134.91,13.64945228]
[1765129986450,6.23762987,134.93,134.9,0.69]
[1765129986770,8.28,134.92,134.88,8.10389869]
[1765129986972,8.28,134.92,134.86,0.2]
[1765129986973,8.99,134.92,134.86,0.89]
[1765129987150,6.94762987,134.91,134.86,0.89]
[1765129987773,6.94762987,134.91,134.87,0.69]
[1765129988677,14.36021541,134.91,134.87,0.69]
[1765129989462,6.23762987,134.89,134.86,0.2]
[1765129989768,14.51762987,134.88,134.86,0.2]
[1765129990163,15.75757479,134.87,134.86,0.2]
[1765129990647,23.17212213,134.87,134.86,0.2]
[1765129992462,14.36217721,134.87,134.86,0.2]
[1765129992663,30.74212213,134.87,134.86,0.2]
[1765129993062,31.45212213,134.87,134.86,0.2]
[1765129994361,30.74212213,134.87,134.86,0.2]
[1765129994672,8.28,134.87,134.86,0.2]
[1765129995374,8.80994492,134.9,134.86,0.89]
[1765129995375,22.46063326,134.9,134.86,0.89]
[1765129995577,13.65007695,134.91,134.86,14.54236535]
[1765129995872,8.28,134.9,134.87,0.69]
[1765129996859,8.28,134.9,134.87,6.92762987]
[1765129997182,8.28,134.9,134.87,14.34213283]
[1765129997359,8.28,134.9,134.88,0.69]
[1765130003880,8.28,134.9,134.86,8.29502953]
[1765130004085,8.28,134.9,134.87,8.09453527]
[1765130004896,8.28,134.9,134.87,0.68]
[1765130005589,8.28,134.9,134.87,8.09448536]
[1765130005971,8.28,134.9,134.88,0.68]
[1765130006788,7.41076831,134.94,134.89,6.23762987]
[1765130006974,8.28,134.93,134.89,6.23762987]
[1765130007169,8.28,134.93,134.9,0.68]
[1765130007369,7.41179958,134.92,134.87,13.65211523]
[1765130007569,7.41179958,134.92,134.88,0.68]
[1765130008678,14.34942945,134.92,134.88,0.68]
[1765130009205,6.93762987,134.91,134.88,0.68]
[1765130009396,8.28,134.9,134.88,0.68]
[1765130011091,7.4113535,134.93,134.88,14.33153211]
[1765130011300,8.28,134.92,134.88,14.33153211]
[1765130011509,8.28,134.92,134.89,6.91762987]
[1765130011807,18.52317863,134.97,134.9,6.23762987]
[1765130011808,16.21968832,134.96,134.9,6.23762987]
[1765130011984,8.28,134.94,134.9,6.91762987]
[1765130012312,8.28,134.94,134.92,7.41179958]
[1765130012790,8.28,134.94,134.92,8.09179958]
[1765130015400,8.98,134.94,134.9,0.68]
[1765130015576,6.23762987,134.92,134.87,7.41416815]
[1765130015777,8.28,134.91,134.88,0.68]
[1765130017276,0.7,134.9,134.87,7.41416815]
[1765130017698,21.93007433,134.91,134.87,8.09416815]
[1765130017906,15.21762987,134.91,134.88,0.68]
[1765130018205,14.51762987,134.91,134.88,0.68]
[1765130018783,15.74757479,134.9,134.86,0.2]
[1765130019098,6.23762987,134.88,134.86,0.2]
[1765130019287,8.28,134.87,134.86,0.2]
[1765130019487,14.51762987,134.87,134.86,0.2]
[1765130020384,8.28,134.87,134.86,0.2]
[1765130021196,8.28,134.88,134.86,0.88]
[1765130021491,8.28,134.88,134.86,8.29509713]
[1765130023404,7.41248141,134.91,134.87,8.09449803]
[1765130023596,8.28,134.89,134.87,8.09449803]
[1765130023800,8.28,134.89,134.88,0.68]
[1765130024196,8.28,134.91,134.88,0.68]
[1765130025394,8.28,134.91,134.88,8.09356573]
[1765130025801,8.28,134.91,134.88,7.41356573]
[1765130026000,8.28,134.91,134.88,8.09356573]
[1765130027392,0.7,134.9,134.86,0.2]
[1765130027592,0.7,134.9,134.86,0.88]
[1765130027813,0.7,134.9,134.87,0.68]
[1765130028106,6.23762987,134.89,134.86,0.2]
[1765130028313,8.28,134.88,134.86,0.2]
[1765130028486,15.21762987,134.88,134.86,0.2]
[1765130028814,19.17094438,134.87,134.86,0.2]
[1765130028998,18.47094438,134.84,134.83,0.2]
[1765130029320,34.16714135,134.84,134.83,0.2]
[1765130029495,34.86714135,134.84,134.83,0.2]
[1765130030107,17.08994492,134.84,134.83,0.2]
[1765130030290,8.28,134.84,134.83,0.2]
[1765130030821,8.28,134.85,134.83,0.2]
[1765130031184,8.28,134.85,134.83,0.92]
[1765130031388,25.96986346,134.88,134.83,8.33645685]
[1765130031589,16.223409,134.89,134.84,0.72]
[1765130031590,8.28,134.86,134.84,0.72]
[1765130032396,8.28,134.88,134.84,0.72]
[1765130033829,8.28,134.88,134.85,7.41564701]
[1765130034211,8.28,134.88,134.85,8.13564701]
[1765130035722,8.28,134.88,134.86,0.72]
[1765130036597,10.32099946,134.87,134.83,7.61669457]
[1765130036796,9.66099946,134.86,134.83,0.2]
[1765130037114,18.47094438,134.84,134.83,0.2]
[1765130037427,25.88714135,134.84,134.83,0.2]
[1765130037603,26.54714135,134.84,134.83,0.2]
[1765130038500,26.54714135,134.84,134.83,1e-08]
[1765130040457,26.54714135,134.84,134.77,0.2]
[1765130040608,34.77980838,134.78,134.77,0.2]
[1765130040808,43.05980838,134.78,134.77,0.2]
[1765130041008,43.71980838,134.78,134.77,0.2]
[1765130041509,51.13930682,134.78,134.77,0.2]
[1765130043521,51.15930682,134.78,134.77,0.2]
[1765130045019,34.17044282,134.78,134.77,0.2]
[1765130045206,26.75094438,134.78,134.77,0.2]
[1765130045411,34.85044282,134.78,134.77,0.2]
[1765130047027,51.15930682,134.78,134.77,0.2]
[1765130047214,69.70805292,134.78,134.75,0.2]
[1765130047538,34.77980838,134.76,134.75,0.2]
[1765130047745,35.45980838,134.76,134.75,0.2]
[1765130048237,43.73980838,134.76,134.75,0.2]
[1765130049308,51.16040796,134.76,134.75,0.2]
[1765130053413,42.20040796,134.76,134.75,0.2]
[1765130053612,51.16040796,134.76,134.75,0.2]
[1765130055051,25.11880892,134.74,134.73,0.2]
[1765130055346,43.05980838,134.74,134.73,0.2]
[1765130055508,43.73980838,134.74,134.73,0.2]
[1765130055708,46.71345444,134.74,134.73,0.2]
[1765130056125,43.73980838,134.74,134.73,0.2]
[1765130056320,46.71345444,134.74,134.73,0.2]
[1765130056520,43.73980838,134.74,134.73,0.2]
[1765130056945,51.16150943,134.74,134.73,0.2]
[1765130060926,42.20150943,134.74,134.73,0.2]
[1765130061127,50.48150943,134.74,134.73,0.86]
[1765130061354,17.94099946,134.74,134.73,0.86]
[1765130063444,15.70170105,134.74,134.73,0.86]
[1765130063649,17.94099946,134.74,134.73,0.86]
[1765130064036,8.28,134.74,134.73,0.86]
[1765130064438,25.36270051,134.74,134.73,0.86]
[1765130065823,8.28,134.74,134.73,0.86]
[1765130068739,8.28,134.75,134.73,8.28210302]
[1765130068939,8.28,134.75,134.74,0.66]
[1765130069555,8.28,134.75,134.74,8.08170105]
[1765130069773,18.54391223,134.82,134.74,36.29695314]
[1765130069934,9.66099946,134.8,134.75,0.66]
[1765130070460,8.28,134.79,134.75,0.66]
[1765130071444,8.28,134.79,134.75,8.08071752]
[1765130071860,8.28,134.79,134.76,0.66]
[1765130073479,8.28,134.79,134.76,8.08014061]
[1765130073847,8.28,134.79,134.77,0.66]
[1765130074773,9.66099946,134.82,134.77,0.66]
[1765130075064,0.69,134.86,134.8,9.66099946]
[1765130075065,9.66099946,134.86,134.8,9.66099946]
[1765130075272,9.66099946,134.87,134.81,9.66099946]
[1765130075474,8.28,134.86,134.81,9.66099946]
[1765130075767,8.28,134.86,134.82,8.07729713]
[1765130075768,15.69521452,134.86,134.82,8.07729713]
[1765130075965,25.35621398,134.86,134.82,0.66]
[1765130076137,25.35621398,134.86,134.83,0.66]
[1765130077049,17.94099946,134.86,134.83,0.66]
[1765130077260,8.28,134.86,134.83,0.66]
[1765130077642,7.41403785,134.88,134.83,0.66]
[1765130077843,8.28,134.87,134.83,8.07644685]
[1765130078343,8.28,134.87,134.84,10.32099946]
[1765130078849,8.28,134.87,134.85,10.32099946]
[1765130079057,9.66099946,134.91,134.86,25.96986346]
[1765130079272,8.28,134.9,134.86,26.62986346]
[1765130079444,8.28,134.9,134.87,0.66]
[1765130079647,8.28,134.9,134.87,8.07402191]
[1765130080069,8.28,134.9,134.88,0.66]
[1765130081070,8.28,134.9,134.88,8.07375335]
[1765130081457,8.28,134.9,134.89,0.66]
[1765130085267,8.28,134.9,134.85,18.53816992]
[1765130085268,8.28,134.9,134.87,0.66]
[1765130085466,8.28,134.9,134.86,0.66]
[1765130085844,19.16094438,134.89,134.86,0.66]
[1765130086059,25.35430219,134.9,134.86,0.66]
[1765130087559,9.66099946,134.87,134.84,0.66]
[1765130087762,8.26,134.86,134.84,0.66]
[1765130088464,17.92099946,134.86,134.82,8.07710943]
[1765130088887,17.92099946,134.86,134.83,0.66]
[1765130089051,9.66099946,134.85,134.83,0.66]
[1765130089253,9.66099946,134.85,134.79,8.26]
[1765130089448,9.66099946,134.84,134.8,8.07802378]
[1765130089670,17.07692401,134.85,134.8,8.07802378]
[1765130089872,18.47094438,134.87,134.81,10.32099946]
[1765130090179,17.92099946,134.87,134.81,10.32099946]
[1765130090369,17.92099946,134.87,134.82,0.66]
[1765130090676,14.50208437,134.87,134.82,0.66]
[1765130091046,8.26,134.87,134.84,6.24208437]
[1765130091251,8.26,134.89,134.85,6.24208437]
[1765130091662,8.26,134.89,134.86,0.71]
[1765130092978,8.26,134.89,134.87,7.41454734]
[1765130093274,8.26,134.89,134.86,8.12492775]
[1765130093664,8.26,134.89,134.87,0.71]
[1765130094980,6.24208437,134.88,134.85,7.4155631]
[1765130095177,13.65617458,134.88,134.85,0.71]
[1765130095380,6.95208437,134.87,134.83,17.018864]
[1765130095567,8.26,134.86,134.83,16.308864]
[1765130095767,14.50208437,134.86,134.83,0.71]
[1765130097583,8.26,134.86,134.83,8.12654443]
[1765130098082,8.26,134.86,134.83,8.11654443]
[1765130100483,6.24208437,134.9,134.84,6.94208437]
[1765130100686,8.26,134.89,134.85,6.24208437]
[1765130100883,8.26,134.89,134.85,6.94208437]
[1765130101190,8.26,134.89,134.86,0.7]
[1765130102291,8.26,134.89,134.87,7.41454734]
[1765130102666,30.68352327,134.91,134.87,7.41454734]
[1765130102862,8.26,134.89,134.87,7.41454734]
[1765130103062,8.26,134.89,134.87,8.11454734]
[1765130103479,15.05202929,134.93,134.88,0.7]
[1765130103684,8.26,134.92,134.88,0.7]
[1765130103982,8.26,134.92,134.88,6.94208437]
[1765130104163,8.26,134.92,134.9,13.65498281]
[1765130104582,8.26,134.92,134.91,0.7]
[1765130104791,14.37176223,134.96,134.91,0.7]
[1765130104972,8.26,134.94,134.91,0.7]
[1765130105380,8.26,134.94,134.91,6.94208437]
[1765130105580,8.26,134.94,134.92,0.7]
[1765130105874,8.26,134.94,134.92,8.11159029]
[1765130106084,8.26,134.94,134.92,0.7]
[1765130107565,15.22208437,134.94,134.9,7.4127006]
[1765130107770,15.22208437,134.94,134.9,8.1127006]
[1765130108712,22.63307168,134.94,134.9,8.1127006]
[1765130109699,21.91307168,134.94,134.9,0.7]
[1765130109999,22.63307168,134.94,134.9,0.7]
[1765130110493,6.24208437,134.92,134.89,0.7]
[1765130110674,8.26,134.91,134.89,0.7]
[1765130111497,8.26,134.92,134.9,7.41289844]
[1765130112000,8.26,134.92,134.9,0.7]
[1765130114102,8.26,134.92,134.9,8.11279085]
[1765130116003,10.58811813,134.92,134.87,2.32811813]
[1765130116203,10.58811813,134.92,134.82,37.08614287]
[1765130116204,2.32811813,134.9,134.82,37.08614287]
[1765130116387,10.58811813,134.89,134.85,7.41545818]
[1765130116790,11.30811813,134.89,134.85,8.11545818]
[1765130117405,18.00195811,134.89,134.85,8.11545818]
[1765130117610,0.72,134.88,134.85,8.11545818]
[1765130117786,3.04811813,134.88,134.83,9.74467286]
[1765130117988,2.32811813,134.87,134.84,0.7]
[1765130118186,8.26,134.86,134.84,0.7]
[1765130119695,8.26,134.86,134.85,7.41564701]
[1765130119894,8.26,134.86,134.85,8.11564701]
[1765130120490,8.26,134.86,134.85,0.7]
[1765130121806,8.26,134.86,134.84,0.7]
[1765130122605,8.26,134.86,134.84,8.11583083]
[1765130123219,8.26,134.86,134.85,8.11564701]
[1765130123423,8.26,134.86,134.84,7.41598104]
[1765130123591,8.98,134.86,134.82,0.7]
[1765130123796,15.22169122,134.86,134.82,8.11708081]
[1765130124606,14.9535642,134.86,134.82,8.11708081]
[1765130125014,21.64878475,134.86,134.82,8.11708081]
[1765130125220,14.9535642,134.86,134.83,0.7]
[1765130126033,14.9535642,134.86,134.83,8.11671075]
[1765130127126,22.36867914,134.86,134.83,0.7]
[1765130127518,6.96169122,134.85,134.81,7.41766671]
[1765130127906,6.96169122,134.85,134.81,8.11766671]
[1765130128598,6.96169122,134.84,134.8,0.7]
[1765130128828,6.96169122,134.84,134.8,8.11801518]
[1765130129027,8.26,134.83,134.8,8.11801518]
[1765130129227,8.26,134.83,134.81,0.7]
[1765130129432,8.26,134.83,134.8,8.11801518]
[1765130129640,8.26,134.83,134.79,7.41855684]
[1765130129641,15.22169122,134.83,134.79,7.41855684]
[1765130129935,8.26,134.83,134.78,24.78930641]
[1765130130135,8.26,134.83,134.8,0.7]
[1765130130330,8.26,134.83,134.81,7.41780861]
[1765130131226,8.26,134.83,134.81,8.11780861]
[1765130132705,8.26,134.83,134.8,7.41819768]
[1765130132907,15.22169122,134.83,134.8,7.41819768]
[1765130133131,15.22169122,134.83,134.8,8.11819768]
[1765130133331,15.22169122,134.83,134.8,7.41819768]
[1765130133534,22.63873127,134.83,134.78,19.24761519]
[1765130133721,6.24169122,134.82,134.79,8.1185904]
[1765130134108,22.63873127,134.83,134.79,8.1185904]
[1765130134835,0.72,134.82,134.79,7.4185904]
[1765130135438,0.72,134.82,134.79,8.1185904]
[1765130135626,14.37921972,134.82,134.78,7.41949844]
[1765130136020,6.96169122,134.81,134.77,24.42869244]
[1765130136340,8.26,134.8,134.77,24.42869244]
[1765130136717,6.24169122,134.78,134.75,7.42079927]
[1765130137028,14.50169122,134.77,134.73,7.62209945]
[1765130137538,8.98,134.77,134.74,8.1216505]
[1765130137834,8.26,134.77,134.74,8.1216505]
[1765130138238,14.50169122,134.77,134.74,8.1216505]
[1765130139033,15.22169122,134.77,134.74,7.4216505]
[1765130139235,0.72,134.76,134.73,7.62203602]
[1765130139433,15.68009577,134.77,134.73,7.62203602]
[1765130139637,0.72,134.76,134.73,8.32203602]
[1765130139824,15.22169122,134.77,134.74,7.42149579]
[1765130140023,8.98,134.77,134.74,7.42149579]
[1765130140843,8.26,134.77,134.75,0.7]
[1765130141137,8.26,134.77,134.75,8.12070026]
[1765130142743,8.26,134.79,134.76,0.7]
[1765130143226,8.26,134.79,134.76,8.12056378]
[1765130143628,8.26,134.79,134.77,0.7]
[1765130144120,8.26,134.79,134.76,32.91375396]
[1765130144334,8.26,134.79,134.76,26.67206274]
[1765130144731,8.26,134.79,134.77,0.7]
[1765130145236,11.31259524,134.79,134.75,0.7]
[1765130146446,11.31259524,134.79,134.76,7.42059958]
[1765130146625,18.73155026,134.79,134.75,8.12096329]
[1765130146832,11.31259524,134.79,134.75,8.12096329]
[1765130147039,8.98,134.79,134.75,8.12096329]
[1765130148038,18.73169066,134.79,134.75,8.12096329]
[1765130148216,11.31259524,134.79,134.75,7.42096329]
[1765130148417,11.31259524,134.79,134.76,0.7]
[1765130148626,11.31259524,134.79,134.75,8.12096329]
[1765130149247,8.98,134.79,134.75,8.12096329]
[1765130149439,16.39913415,134.79,134.75,8.12096329]
[1765130149642,18.73172939,134.79,134.75,8.12096329]
[1765130149946,3.05259524,134.78,134.74,8.12166697]
[1765130150143,3.05259524,134.78,134.74,7.42166697]
[1765130150439,0.72,134.77,134.74,8.12166697]
[1765130150645,8.26,134.76,134.73,0.2]
[1765130150829,8.26,134.76,134.73,0.89]
[1765130151155,8.26,134.76,134.74,7.42148213]
[1765130151619,8.26,134.76,134.74,8.11148213]
[1765130151833,8.26,134.76,134.75,0.69]
[1765130152943,8.26,134.76,134.75,8.11115027]
[1765130153315,16.90852796,134.8,134.75,11.75710011]
[1765130153519,8.26,134.79,134.76,0.69]
[1765130153820,8.94,134.79,134.76,0.69]
[1765130154441,8.26,134.79,134.76,0.69]
[1765130154648,8.26,134.79,134.77,7.42004897]
[1765130155529,8.94,134.79,134.76,8.1104391]
[1765130155731,8.94,134.79,134.76,7.4204391]
[1765130155951,8.26,134.79,134.76,8.1404391]
[1765130156246,8.98,134.79,134.76,8.1404391]
[1765130157143,8.98,134.79,134.77,4.36594984]
[1765130157144,8.26,134.79,134.77,4.36594984]
[1765130157365,0.72,134.78,134.76,7.4204391]
[1765130157656,8.26,134.79,134.77,4.36594984]
[1765130158158,8.26,134.79,134.78,0.72]
[1765130158330,11.78288091,134.83,134.78,0.72]
[1765130158529,8.26,134.81,134.78,0.72]
[1765130158752,8.26,134.81,134.77,3.64594984]
[1765130159153,137.33508233,134.84,134.79,3.64594984]
[1765130159369,137.33508233,134.84,134.8,3.64594984]
[1765130159370,0.72,134.84,134.8,3.64594984]
[1765130159648,8.26,134.83,134.8,3.64594984]
[1765130160031,0.72,134.82,134.79,29.61226781]
[1765130161352,8.26,134.83,134.79,30.33226781]
[1765130161538,11.06115437,134.86,134.8,3.64594984]
[1765130161743,3.64594984,134.83,134.78,7.41937775]
[1765130161945,3.64594984,134.81,134.76,16.308864]
[1765130162253,3.64594984,134.79,134.74,3.64594984]
[1765130162455,11.90594984,134.78,134.73,3.84594984]
[1765130162632,8.26,134.78,134.73,20.15481384]
[1765130162831,0.72,134.77,134.73,46.13263499]
[1765130163148,0.72,134.77,134.73,7.62219138]
[1765130163856,0.72,134.77,134.74,16.308864]
[1765130164041,0.72,134.77,134.73,7.62219138]
[1765130164245,3.64594984,134.76,134.73,0.2]
[1765130164454,8.26,134.75,134.73,0.2]
[1765130164637,8.26,134.77,134.73,11.98819852]
[1765130164966,8.98,134.77,134.73,11.98819852]
[1765130165645,8.98,134.77,134.73,30.54382829]
[1765130165954,0.72,134.78,134.73,26.89787845]
[1765130166154,8.98,134.77,134.73,7.62224868]
[1765130166647,0.72,134.76,134.73,0.2]
[1765130166855,4.36594984,134.76,134.73,0.2]
[1765130167252,4.36594984,134.75,134.73,0.2]
[1765130167450,8.26,134.74,134.73,0.2]
[1765130167754,8.98,134.74,134.73,0.2]
[1765130169044,20.04765089,134.74,134.73,0.2]
[1765130169452,8.98,134.74,134.73,0.2]
[1765130171066,7.42073375,134.76,134.73,0.92]
[1765130171238,18.54918539,134.78,134.73,30.54376052]
[1765130171239,8.26,134.78,134.73,30.54376052]
[1765130171433,8.26,134.78,134.74,4.36594984]
[1765130171739,8.26,134.78,134.76,3.64594984]
[1765130171950,8.26,134.78,134.76,4.36594984]
[1765130172273,3.64594984,134.82,134.76,3.64594984]
[1765130172436,16.308864,134.83,134.76,3.64594984]
[1765130172437,8.26,134.81,134.77,4.36594984]
[1765130172636,8.26,134.81,134.77,10.38681669]
[1765130172837,8.26,134.81,134.76,16.308864]
[1765130172838,0.72,134.8,134.76,16.308864]
[1765130173038,0.72,134.8,134.76,23.72909426]
[1765130173440,0.72,134.8,134.75,9.66681669]
[1765130173441,17.80540539,134.8,134.75,7.42103385]
[1765130173962,0.72,134.79,134.75,7.42103385]
[1765130174162,8.26,134.78,134.75,7.42103385]
[1765130174371,0.72,134.81,134.76,17.80724605]
[1765130174673,8.26,134.8,134.77,9.66681669]
[1765130174968,0.72,134.81,134.77,9.66681669]
[1765130175148,8.98,134.8,134.77,17.08649588]
[1765130175459,8.98,134.8,134.75,9.66681669]
[1765130175460,18.64681669,134.8,134.75,9.66681669]
[1765130175638,0.72,134.79,134.75,9.66681669]
[1765130175844,0.72,134.79,134.76,7.4202458]
[1765130176258,9.66681669,134.77,134.73,7.62204188]
[1765130176463,8.26,134.76,134.73,7.62204188]
[1765130176664,8.98,134.76,134.73,7.62204188]
[1765130176846,0.72,134.75,134.73,0.2]
[1765130177249,0.72,134.75,134.73,7.6222035]
[1765130177644,0.72,134.75,134.73,0.2]
[1765130177839,10.38681669,134.75,134.73,0.2]
[1765130178267,0.72,134.74,134.73,0.2]
[1765130178648,10.38681669,134.74,134.73,0.2]
[1765130178857,17.92681669,134.76,134.73,7.62225191]
[1765130179055,8.98,134.75,134.73,7.62225191]
[1765130179395,8.26,134.74,134.73,0.2]
[1765130179671,8.26,134.74,134.73,7.62225191]
[1765130180178,8.98,134.74,134.73,7.62225191]
[1765130181970,0.66,134.78,134.73,17.9590686]
[1765130182179,8.26,134.77,134.74,0.67]
[1765130182378,8.26,134.77,134.74,10.33681669]
[1765130182755,8.26,134.77,134.75,9.66681669]
[1765130183358,8.26,134.77,134.75,7.42080428]
[1765130185063,0.66,134.81,134.76,10.33681669]
[1765130185264,8.26,134.8,134.76,10.33681669]
[1765130185581,8.26,134.8,134.77,10.33681669]
[1765130186079,8.26,134.8,134.78,0.67]
[1765130186278,104.8,134.82,134.78,10.33681669]
[1765130186480,0.66,134.83,134.79,9.66681669]
[1765130186658,8.26,134.81,134.79,10.33681669]
[1765130187077,8.26,134.81,134.79,17.75547417]
[1765130187276,8.26,134.81,134.79,17.08547417]
[1765130187681,8.92,134.81,134.79,7.41865748]
[1765130188185,8.92,134.81,134.78,7.41936186]
[1765130188357,8.26,134.81,134.78,8.08936186]
[1765130191783,8.26,134.81,134.78,17.75617855]
[1765130192774,8.26,134.81,134.78,11.73287845]
[1765130193383,4.30351659,134.8,134.73,0.87]
[1765130193568,4.30351659,134.8,134.74,3.64351659]
[1765130193764,0.66,134.79,134.75,7.421088]
[1765130193971,8.26,134.78,134.75,7.421088]